Cogmind - Beta 16 @@@ ROGUE MODE // 2025.11.06 @ 15:50:50 Player: Mozco Result: Self-destructed Performance ------------- Evolutions (8) 4000 Regions Visited (23) 4600 Robots Destroyed (319) 1595 Value Destroyed (17443) 17443 Prototype IDs (41) 820 Alien Tech Used (0) 0 Bonus (12951) 12951 TOTAL SCORE: 41409 Bonus ------- High Alert Combat Kills 3443 Follower Combat Kills 2913 Entered Garrisons 1800 Used RIF Installer 4500 Aligned with FarCom 300 Friendly Fire -5 Cogmind --------- Core Integrity 1268/1450 Matter 300/300 Energy 586/870 System Corruption 5% Temperature Critical (604) Movement Walking (183) Ox1 Location -2/Research Parts ------- > --- POWER (3) -------- Particle Reactor Light Quantum Reactor Light Quantum Reactor > --- PROPULSION (5) --- Myomer Leg Biometal Leg Biometal Leg Biometal Leg > --- UTILITY (10) ----- Advanced Cooling System High-capacity Storage Unit Energy Well Advanced Phase Shifter Relay Coupler [NC] (51) Relay Coupler [Grunt] (13) Relay Coupler [Sentry] (29) Relay Coupler [Hunter] (1) Relay Coupler [Heavy] (1) > --- WEAPON (5) ------- Quantum Rifle Quantum Rifle Quantum Rifle Enhanced Nova Cannon > --- INVENTORY (20) --- Particle Reactor Medium Treads Myomer Leg Myomer Leg Myomer Leg Biometal Leg Biometal Leg Advanced Powered Armor Advanced Point Defense System Relay Coupler [Grunt] (26) Relay Coupler [Sentry] (29) Relay Coupler [Behemoth] (12) Relay Coupler [Proto] (9) Skeleton Box Phase Gun Quantum Rifle Enhanced Hardcell Cannon Enhanced Hardcell Cannon Enhanced Hardcell Cannon Fusion Bomb Launcher Peak State ------------ > --- POWER ------------ Particle Reactor Light Quantum Reactor Light Quantum Reactor > --- PROPULSION ------- Myomer Leg Myomer Leg Biometal Leg Biometal Leg Biometal Leg > --- UTILITY ---------- Advanced Coolant Injector High-capacity Storage Unit Jamming Amplifier Advanced Phase Shifter Advanced Powered Armor Advanced Powered Armor Advanced Point Defense System Relay Coupler [NC] Relay Coupler [Grunt] Relay Coupler [Hunter] > --- WEAPON ----------- Quantum Rifle Enhanced Nova Cannon XL Autogun Subcomponent XL Autogun Subcomponent Advanced Remote Datajack > --- INVENTORY -------- Particle Reactor Medium Treads Myomer Leg Myomer Leg Myomer Leg Biometal Leg Advanced Cooling System Energy Well Relay Coupler [Grunt] Relay Coupler [Sentry] Relay Coupler [Sentry] Relay Coupler [Heavy] Relay Coupler [Behemoth] Relay Coupler [Proto] Skeleton Box Phase Gun Enhanced Hardcell Cannon Enhanced Hardcell Cannon Enhanced Hardcell Cannon Fusion Bomb Launcher [Rating: 169] Favorites ----------- Power Light Antimatter Reactor Engine Reinforced Ion Engine Power Core Enhanced Fission Core Reactor Light Antimatter Reactor Propulsion Armored Medium Treads Treads Armored Medium Treads Leg Potential Leg Utility High-capacity Storage Unit Device Advanced Heat Sink Storage High-capacity Storage Unit Processor Corruption Screen Hackware Relay Coupler [NC] Protection Advanced Powered Armor Weapon EM Pulse Cannon Energy Gun Variable Charge Gun Energy Cannon EM Pulse Cannon Ballistic Gun XL Autogun Subcomponent Ballistic Cannon Magnetic Acceleration Cannon Launcher Proton Missile Launcher Special Weapon Improved Remote Datajack Special Melee Weapon Advanced Datajack Build | -11 -10 -10 -10 -9 -8 -8 -7 -7 -7 -7 -6 -6 -5 -5 -5 -5 -4 -4 -4 -4 -3 -3 -2 ------- Run | Yrd Mat Min Exi Min Mat Gar Fac Gar Fac Gar Fac Gar Fac Gar Fac Gar Fac Gar Fac Gar Res Gar Res Slots Evolved 16 | . . . . . 4 . 2 . . . 2 . 2 . . . 2 . . . 2 . 2 Power 2 | . . . . . . . . . . . . . 1 . . . . . . . 1 . . Propulsion 3 | . . . . . 1 . . . . . 1 . . . . . . . . . . . 1 Utility 8 | . . . . . 1 . 2 . . . 1 . 1 . . . 1 . . . 1 . 1 Weapon 3 | . . . . . 2 . . . . . . . . . . . 1 . . . . . . Parts Attached 301 | 6 1 7 3 3 24 15 9 4 3 11 5 5 6 31 10 16 10 11 34 37 2 25 23 Power 39 | 1 . 1 . 1 2 1 . . . 1 . 2 1 4 1 2 1 3 5 4 1 5 3 Engine 6 | 1 . 1 . . . 1 . . . . . 2 . 1 . . . . . . . . . Core 15 | . . . . 1 2 . . . . 1 . . 1 2 . 2 1 1 2 . 1 1 . Reactor 18 | . . . . . . . . . . . . . . 1 1 . . 2 3 4 . 4 3 Propulsion 58 | 2 . 2 1 . 8 4 1 1 1 2 . . 2 6 4 . 2 1 4 4 . 5 8 Treads 34 | 2 . 2 1 . 8 1 . . . . . . . 5 4 . 2 1 4 4 . . . Leg 24 | . . . . . . 3 1 1 1 2 . . 2 1 . . . . . . . 5 8 Wheel . | . . . . . . . . . . . . . . . . . . . . . . . . Hover . | . . . . . . . . . . . . . . . . . . . . . . . . Flight . | . . . . . . . . . . . . . . . . . . . . . . . . Utility 106 | 1 1 . 2 . 6 2 5 3 1 5 4 2 2 9 5 8 2 4 12 15 1 9 7 Device 50 | . . . . . 1 1 1 2 . 4 . . 1 4 2 5 2 2 10 8 . 5 2 Storage 6 | 1 . . 2 . 1 . . . . . . . . . 1 . . . . 1 . . . Processor 5 | . 1 . . . . . 2 . . . . . . . 1 . . . . 1 . . . Hackware 26 | . . . . . . . 1 . 1 . 4 2 1 2 . 3 . 2 2 1 1 2 4 Protection 19 | . . . . . 4 1 1 1 . 1 . . . 3 1 . . . . 4 . 2 1 Artifact . | . . . . . . . . . . . . . . . . . . . . . . . . Weapon 98 | 2 . 4 . 2 8 8 3 . 1 3 1 1 1 12 . 6 5 3 13 14 . 6 5 Energy Gun 47 | 2 . 1 . 2 1 4 2 . . 2 1 . . 7 . 3 5 2 6 5 . . 4 Energy Cannon 14 | . . . . . 6 . . . . . . 1 . 3 . . . . . 3 . . 1 Ballistic Gun 12 | . . 1 . . . 2 . . 1 . . . . 2 . . . 1 1 . . 4 . Ballistic Cannon 7 | . . . . . . . . . . . . . 1 . . . . . 3 2 . 1 . Launcher 7 | . . 2 . . 1 1 1 . . . . . . . . . . . . 2 . . . Special Weapon 9 | . . . . . . . . . . 1 . . . . . 2 . . 3 2 . 1 . Impact Weapon . | . . . . . . . . . . . . . . . . . . . . . . . . Slashing Weapon . | . . . . . . . . . . . . . . . . . . . . . . . . Piercing Weapon . | . . . . . . . . . . . . . . . . . . . . . . . . Special Melee Weapon 2 | . . . . . . 1 . . . . . . . . . 1 . . . . . . . Unidentified Prototypes 7 | . . . . . 1 . 2 . . . . . . . 1 . . . 2 . . 1 . Corrupted Parts 3 | . . . . . . 1 . . . . . . . . . . . . . . . 2 . System Corruption 16 | . . . . . . 6 . . . . . . . . . . . . . . . 10 . Parts Lost 83 | . . 7 . . 2 4 6 . 1 3 . 1 . 9 1 4 8 4 7 2 . 20 4 Power 16 | . . 1 . . 1 1 . . . . . 1 . 1 . 2 2 . 2 . . 5 . Propulsion 11 | . . 2 . . . . . . . . . . . 1 . . 2 . . 1 . 4 1 Utility 27 | . . . . . . 1 2 . . 1 . . . 4 1 . . 2 4 1 . 9 2 Weapon 29 | . . 4 . . 1 2 4 . 1 2 . . . 3 . 2 4 2 1 . . 2 1 Highest Loss Streak 9 | . . 4 . . 1 3 3 . 1 3 . 1 . 3 1 3 8 1 4 1 . 9 3 To Critical Strikes 4 | . . . . . . . . . . . . . . . . . . . . . . 4 . Average Backups 15 | . 6 5 8 12 12 16 14 16 16 16 16 16 16 15 16 16 16 16 16 17 19 14 19 Power . | . . . . . . . 1 1 1 1 2 1 . . . 1 . . 1 1 2 . 1 Propulsion 2 | . 2 3 4 5 3 4 2 2 3 4 4 4 4 2 2 2 2 2 2 1 1 1 4 Utility 8 | . . 1 3 4 4 8 7 8 10 9 7 7 7 8 11 9 9 10 8 11 11 8 8 Weapon 2 | . 2 . . 1 1 1 2 1 1 . 1 2 3 2 1 1 2 1 1 2 4 3 4 Tool/Special . | . . . . . . . . . . . . . . . . . . . . . . . . Unused Backups 49 | . 1 . . 1 4 6 . 9 . 2 . . . 3 1 . . 3 . 5 . . 14 Power 8 | . 1 . . . 1 . . 3 . . . . . . . . . . . 1 . . 2 Propulsion 10 | . . . . . 3 1 . . . 2 . . . . . . . . . . . . 4 Utility 25 | . . . . 1 . 5 . 6 . . . . . 1 1 . . 3 . 4 . . 4 Weapon 6 | . . . . . . . . . . . . . . 2 . . . . . . . . 4 Tool/Special . | . . . . . . . . . . . . . . . . . . . . . . . . Average Slot Usage (%) 93 | . 89 80 99 100 98 95 97 98 100 96 97 99 96 95 96 98 96 88 89 87 76 84 96 Engine 2 | . 14 4 14 10 . 5 7 7 7 . . 5 5 3 . . . . . . . . . Core 4 | . . . . 3 9 3 . . . 6 6 . 4 5 1 2 5 5 5 5 8 5 1 Reactor 2 | . . . . . . . . . . . . . . . 8 7 2 4 4 4 4 7 11 Treads 15 | . 28 27 27 28 26 25 . . . . . . . 9 23 23 20 18 13 14 14 2 . Leg 6 | . . . . . . 1 23 23 23 23 25 26 22 12 . . . . . . . 13 20 Device 11 | . . . . . 8 9 7 1 . 6 1 1 5 6 11 14 20 21 21 23 19 12 9 Storage 6 | . 14 14 14 14 9 9 7 7 7 7 6 6 5 5 5 5 5 5 5 5 4 4 5 Processor 3 | . 3 14 14 14 . . 7 15 15 8 6 6 5 4 1 1 . . . 1 4 4 3 Hackware 7 | . . . . . . . . . 1 4 16 22 14 13 17 17 15 11 13 6 5 5 13 Protection 4 | . . . . . 8 9 12 13 13 7 6 1 5 6 . . . . . 4 4 6 6 Energy Gun 10 | . 28 4 14 19 1 7 10 15 15 14 13 7 5 9 23 17 19 17 14 6 . . 4 Energy Cannon 5 | . . . . . 25 11 3 . . . . 4 4 5 . . . . . 4 . 2 4 Ballistic Gun 2 | . . 2 . . . 6 6 . 5 6 6 6 1 1 . . . 2 2 1 4 11 8 Launcher 2 | . . 11 14 8 7 5 6 7 1 . . . . . . . . . . 1 . . . Special Weapon 2 | . . . . . . . . . . 5 6 6 5 1 . . 3 . 4 4 4 3 3 Peak Build Rating 169 | 6 7 8 14 17 40 62 68 65 66 85 83 86 98 96 103 101 112 124 120 132 140 147 169 Average Rating 81 | 4 6 5 9 15 34 44 63 63 63 67 79 84 93 85 95 94 101 105 109 124 137 123 158 On Entrance 69 | . 6 7 8 14 17 37 56 63 63 66 71 83 86 95 82 97 93 99 102 118 130 140 138 Avg Prop Armor Cover (%) 6 | . . . . . . . . . . . . . . 5 . 6 . . . . . . 2 Naked Turns . | . . . . . . . . . . . . . . . . . . . . . . . . Heaviest Build 157 | 14 14 14 29 29 77 82 83 74 70 69 69 82 91 105 108 92 105 107 125 143 126 144 157 Greatest Support 140 | 40 40 40 40 40 64 73 75 75 80 80 98 98 98 106 114 108 108 124 140 140 120 120 134 Greatest Overweight (x) 37 | . . . 1 . 1 1 1 . . . . . . 2 . . 1 1 1 1 1 37 1 Average Overweight (x) . | . . . . . . . . . . . . . . . . . . . . . . 1 . Largest Inventory Capacity 20 | 8 8 8 15 15 20 20 20 20 20 20 20 20 20 20 20 20 20 20 20 20 20 20 20 Average Capacity 18 | 7 8 8 10 15 16 20 20 20 20 20 20 20 20 20 20 20 20 20 20 20 20 20 20 Most Carried 20 | 2 8 8 15 15 20 20 20 20 20 20 20 20 20 20 20 20 20 20 20 20 20 20 20 Average Carried 17 | . 6 5 9 14 15 19 17 19 19 19 19 19 19 18 19 19 19 19 19 19 20 14 19 Final Capacity 20 | 8 8 8 15 15 20 20 20 20 20 20 20 20 20 20 20 20 20 20 20 20 20 20 20 Final Carried 20 | 2 8 7 15 15 19 18 19 20 20 20 20 18 19 20 19 18 18 20 20 20 20 20 20 Class Distribution -------------------- 31% | Botlord-Tank 16% | Skirmisher 13% | Bothacker-Tank 11% | Mutant 8% | Scavenger-Tank 7% | Botlord-Gunner 3% | Bothacker-Gunner 3% | Scavenger-Gunner Dominant Class ---------------- Mutant | -10/Materials Mutant | -10/Mines Mutant | -10/Exiles Mutant | -9/Mines Skirmisher | -8/Materials Skirmisher | -8/Garrison Skirmisher | -7/Factory Bothacker-Tank | -7/Garrison Bothacker-Tank | -7/Factory Bothacker-Tank | -7/Garrison Scavenger-Tank | -6/Factory Scavenger-Gunner | -6/Garrison Scavenger-Tank | -5/Factory Scavenger-Tank | -5/Garrison Tank | -5/Factory Botlord-Gunner | -5/Garrison Botlord-Tank | -4/Factory Bothacker-Gunner | -4/Garrison Botlord-Tank | -4/Factory Botlord-Tank | -4/Garrison Botlord-Tank | -3/Research Botlord-Tank | -3/Garrison Botlord-Tank | -2/Research Resources | -11 -10 -10 -10 -9 -8 -8 -7 -7 -7 -7 -6 -6 -5 -5 -5 -5 -4 -4 -4 -4 -3 -3 -2 ----------- Run | Yrd Mat Min Exi Min Mat Gar Fac Gar Fac Gar Fac Gar Fac Gar Fac Gar Fac Gar Fac Gar Res Gar Res Matter Collected 9626 | 229 41 66 . 90 273 626 290 . 107 277 87 228 . 920 309 312 257 706 904 1815 . 1065 1024 Remotely . | . . . . . . . . . . . . . . . . . . . . . . . . Salvage Created 14905 | . 272 19 . 52 1259 1141 1226 . 169 347 174 350 . 1125 115 901 423 1281 1432 2264 . 1077 1278 Parts 657 | . 10 . . 4 82 50 51 . 8 26 10 11 . 49 4 36 7 62 67 92 . 47 41 Haulers Intercepted 5 | . 1 . . . 2 . 2 . . . . . . . . . . . . . . . . Recyclers Shooed 9 | . . . . 1 2 . 2 . . . . . . . . . . . 3 . . . 1 Parts Field Recycled . | . . . . . . . . . . . . . . . . . . . . . . . . Retrieved Matter . | . . . . . . . . . . . . . . . . . . . . . . . . Parts Self-Destructed . | . . . . . . . . . . . . . . . . . . . . . . . . Prevented . | . . . . . . . . . . . . . . . . . . . . . . . . Parts Restored . | . . . . . . . . . . . . . . . . . . . . . . . . Kills | -11 -10 -10 -10 -9 -8 -8 -7 -7 -7 -7 -6 -6 -5 -5 -5 -5 -4 -4 -4 -4 -3 -3 -2 ------- Run | Yrd Mat Min Exi Min Mat Gar Fac Gar Fac Gar Fac Gar Fac Gar Fac Gar Fac Gar Fac Gar Res Gar Res Combat Hostiles Destroyed 278 | . 4 3 . 5 29 26 16 . 2 10 3 7 . 29 2 11 6 25 19 47 . 22 12 Melee 6 | . . . . . 1 . . . . . . . . 4 . . . . . . . 1 . Guns 158 | . 3 2 . 1 1 12 14 . 1 10 3 6 . 9 2 10 5 22 14 23 . 11 9 Cannons 66 | . . . . . 11 8 . . . . . 1 . 13 . . . . 5 15 . 10 3 AOE 34 | . . 1 . 4 14 4 2 . 1 . . . . . . . . . . 8 . . . Classes Destroyed 21 | . 3 2 . 1 6 1 2 . 1 . . . . 3 . . . . 1 1 . . . Worker 8 | . . . . . 1 . 2 . . . . . . . . . 1 . 3 . . . 1 Builder 2 | . . . . . . . . . . . . . . . . . . . 1 . . . 1 Hauler 5 | . 1 . . . 2 . 2 . . . . . . . . . . . . . . . . Recycler 8 | . . . . . . . 5 . . . . . . . . . . . 2 . . . 1 Mechanic 2 | . . . . . . . . . 1 . . . . . . . . . . . . . 1 Operator 3 | . . . . . 2 . . . 1 . . . . . . . . . . . . . . Watcher 11 | . 3 . . . 4 1 1 . . . . . . . . 1 . . 1 . . . . Swarmer 69 | . . . . 4 12 6 3 . . 5 . 1 . 6 . . . 12 . 13 . 7 . Cutter 2 | . . . . . . . . . . . . . . 2 . . . . . . . . . Saboteur 7 | . . . . . . . . . . . . . . 5 . . . . . 1 . 1 . Grunt 98 | . 4 . . 1 9 13 9 . 1 2 2 4 . 9 . 7 3 9 3 14 . 5 3 Brawler 8 | . . . . . 1 1 . . 1 . . 2 . . . . . . . 3 . . . Duelist 6 | . . . . . . 1 1 . . . 1 . . . . . . . . 3 . . . Sentry 20 | . . . . . 6 5 1 . . 1 . . . 2 . . . . . 3 . . 2 Demolisher 3 | . . 2 . . . . . . . . . . . . . . . . . 1 . . . Specialist 2 | . . . . . . . . . . . . . . . . . . . . 1 . 1 . Hunter 21 | . . . . . 1 . 1 . . 1 . . . . . . 1 3 3 . . 6 5 Programmer 37 | . . . . . . . 1 . . 1 . . . 4 2 4 1 . 12 7 . 2 3 Heavy 2 | . . . . . 1 . . . . . . . . . . . . . 1 . . . . Behemoth 5 | . . . . . . . . . . . . . . 1 . . 1 1 . 2 . . . Assembled 1 | . . 1 . . . . . . . . . . . . . . . . . . . . . Best Kill Streak 10 | . 3 2 . 4 6 6 10 . 2 4 3 4 . 3 1 2 2 8 6 6 . 4 4 Combat Bots Only 8 | . 2 2 . 4 6 6 4 . 1 4 3 4 . 3 1 2 2 8 5 6 . 4 3 Max Kills in Single Turn 4 | . 1 1 . 2 3 2 3 . 1 2 1 2 . 1 1 1 2 2 2 4 . 2 1 Gunslinging 1 | . . . . . . . 1 . . 1 . . . . . . 1 . . 1 . 1 . Exploded 4 | . . 1 . 2 3 2 2 . 1 . . . . . . . . . . 4 . . . Melee 1 | . . . . . 1 . . . . . . . . 1 . . . . . . . 1 . Uniques/NPCs Destroyed . | . . . . . . . . . . . . . . . . . . . . . . . . Combat | -11 -10 -10 -10 -9 -8 -8 -7 -7 -7 -7 -6 -6 -5 -5 -5 -5 -4 -4 -4 -4 -3 -3 -2 -------- Run | Yrd Mat Min Exi Min Mat Gar Fac Gar Fac Gar Fac Gar Fac Gar Fac Gar Fac Gar Fac Gar Res Gar Res Hostile Shots Fired 1905 | . 35 16 . 12 88 76 88 . 10 44 30 36 4 196 38 97 96 133 214 249 . 319 124 Missed 605 | . 9 1 . 2 29 15 26 . 5 16 11 13 2 52 11 19 34 45 72 67 . 124 52 Intercepted 5 | . . . . . . . . . . . . . . . . . . . . 5 . . . Hits 1300 | . 26 15 . 10 59 61 62 . 5 28 19 23 2 144 27 78 62 88 142 182 . 195 72 Melee 34 | . . 7 . . 1 3 2 . . . . . . 8 . . . . 7 5 . 1 . Projectile 1266 | . 26 8 . 10 58 58 60 . 5 28 19 23 2 136 27 78 62 88 135 177 . 194 72 AOE 13 | . . 8 . . . . . . . 1 . . . . . . 1 . . 2 . . 1 Critical Strikes 69 | . . 1 . 1 3 7 1 . . . . . . 8 2 5 1 4 8 11 . 13 4 Part Disruptions 6 | . . . . . . . . . . . . . . . . 2 1 . . . . 1 2 Damage Taken 22145 | . 270 538 . 121 1013 904 845 . 98 444 196 340 45 2571 496 1654 1341 1473 2167 2646 . 3289 1694 Core 1785 | . 20 126 . 34 120 50 76 . 15 99 . 68 . 231 . 148 44 103 164 187 . 118 182 Absorbed by Shields 2386 | . . . . . . . 13 . . . . . . . 83 . 88 97 724 1076 . 305 . Redirected to Shielding 173 | . . . . . 1 . 51 . 4 38 . . . . 79 . . . . . . . . Ignored by Resistances 710 | . . . . . . . . . . . . . . . . . . . 235 179 . 296 . Regen/Repaired (Parts) 1616 | . . . . . 36 . . . . . . . . . . . 553 359 357 311 . . . Core Remaining (%) 71 | 100 . . . 28 . 69 . . . 72 . 92 . . . 62 . . . 56 . 90 . Volleys Fired 992 | . 25 19 . 8 60 53 48 7 11 25 19 28 . 114 6 75 29 74 79 160 . 77 75 Largest 5 | . 2 2 . 2 4 4 4 1 3 3 3 3 . 4 4 4 4 5 4 4 . 4 4 Hottest 427 | . 100 100 . 80 252 233 230 75 155 155 143 189 . 293 300 300 333 427 326 395 . 265 402 Shots Fired 2110 | . 49 23 . 13 139 111 105 7 17 43 35 51 . 249 24 156 61 149 216 272 . 163 227 Gun 1449 | . 49 22 . 10 22 61 99 7 17 40 24 40 . 103 24 153 54 149 181 137 . 94 163 Cannon 520 | . . . . . 107 44 5 . . . . 4 . 137 . . . . 20 99 . 59 45 Launcher 31 | . . 1 . 3 10 6 1 . . . . . . . . . . . . 10 . . . Special 110 | . . . . . . . . . . 3 11 7 . 9 . 3 7 . 15 26 . 10 19 Kinetic 571 | . . 16 . . . 33 31 . 3 18 8 17 . 58 . . . 36 61 64 . 112 114 Thermal 1158 | . 49 6 . 10 43 28 65 1 4 10 8 17 . 182 24 143 44 113 135 148 . 34 94 Explosive 26 | . . 1 . 3 10 2 . . . . . . . . . . . . . 10 . . . Electromagnetic 245 | . . . . . 86 48 9 6 10 12 8 10 . . . 10 10 . 5 24 . 7 . Robot Hit Streak 23 | . 5 4 . 6 12 9 23 3 15 16 5 8 . 13 13 12 7 9 10 18 . 14 9 Robot Miss Streak 9 | . 4 7 . 2 4 4 5 . 3 5 3 3 . 5 2 4 2 5 4 5 . 9 6 Penetration Max 2 | . . . . . . . . . . . 2 1 . . . . . . 2 . . . . Secondary Targets 18 | . . . . . . . 2 . . 1 . 1 . . . 3 1 1 3 4 . 2 . Max Gunslinging Chain 1 | . . . . . . . 1 . . 1 . 1 . . . 1 1 1 1 1 . 1 . Shots Hit Robots 1231 | . 28 9 . 8 81 68 72 6 18 27 22 30 . 128 14 90 47 88 128 165 . 85 117 Core Hits 589 | . 12 6 . 8 53 39 53 2 13 19 9 15 . 40 4 31 16 51 48 93 . 39 38 Critical Kills 8 | . . 1 . . . . . . . . . . . 3 . . . . 4 . . . . Critical Parts Destroyed 3 | . . 1 . . . . . . . 1 . . . . . . . . 1 . . . . Critical Strikes 41 | . 3 2 . . . . 1 . . 1 . . . 7 . . 4 4 14 4 . 1 . Burn 23 | . 3 . . . . . 1 . . . . . . 1 . . 4 4 8 2 . . . Meltdown 3 | . . . . . . . . . . . . . . 3 . . . . . . . . . Destroy 8 | . . 2 . . . . . . . 1 . . . . . . . . 5 . . . . Blast 6 | . . . . . . . . . . . . . . 3 . . . . 1 1 . 1 . Corrupt 1 | . . . . . . . . . . . . . . . . . . . . 1 . . . Melee Attacks 21 | . . . . . . 2 . 5 6 . . . . . . 4 4 . . . . . . Impact . | . . . . . . . . . . . . . . . . . . . . . . . . Slashing . | . . . . . . . . . . . . . . . . . . . . . . . . Piercing . | . . . . . . . . . . . . . . . . . . . . . . . . Sneak Attacks 12 | . . . . . . 2 . 5 1 . . . . . . 1 3 . . . . . . Combat Hostiles . | . . . . . . . . . . . . . . . . . . . . . . . . Follow-up Attacks . | . . . . . . . . . . . . . . . . . . . . . . . . Damage Inflicted 37629 | . 366 101 . 373 2965 2362 1705 27 368 550 325 612 . 3682 379 2105 1263 3358 4033 7458 . 2406 3191 Guns 22571 | . 366 82 . 74 193 1034 1479 27 268 550 325 515 . 1174 379 2105 982 3358 3171 3264 . 1117 2108 Cannons 11160 | . . . . . 1781 726 122 . . . . 97 . 2491 . . . . 831 2752 . 1289 1071 Explosions 3815 | . . 16 . 299 976 602 101 . 100 . . . . . . . 281 . . 1440 . . . Melee . | . . . . . . . . . . . . . . . . . . . . . . . . Ramming 83 | . . 3 . . 15 . 3 . . . . . . 17 . . . . 31 2 . . 12 Kinetic 12738 | . . 44 . . . 789 449 . 24 362 182 320 . 1038 . . . 2022 1854 2780 . 1563 1311 Thermal 17673 | . 366 38 . 74 658 295 993 . 157 105 35 247 . 2627 379 2084 1133 1336 2095 2602 . 581 1868 Explosive 3057 | . . 16 . 299 875 427 . . . . . . . . . . . . . 1440 . . . Electromagnetic 4078 | . . . . . 1417 851 260 27 187 83 108 45 . . . 21 130 . 53 634 . 262 . Impact . | . . . . . . . . . . . . . . . . . . . . . . . . Slashing . | . . . . . . . . . . . . . . . . . . . . . . . . Piercing . | . . . . . . . . . . . . . . . . . . . . . . . . Highest Corruption 15 | . . . . . . 6 . . . . . . . . 1 1 1 1 7 15 . 13 5 Average Corruption 6 | . . . . . . 6 . . . . . . . . 1 1 1 1 3 12 . 11 2 Corruption Purged 9 | . . . . . . . . . . . . . . . . . . . 9 . . . . Corruption Blocked 16 | . . . . . . . . . . 1 . . . 7 3 5 . . . . . . . Effects 261 | . . . . . . 38 . . . . . . . . 1 10 4 9 23 122 . 48 6 Message Errors 54 | . . . . . . 13 . . . . . . . . . 2 . 3 2 27 . 7 . Matter Fused 68 | . . . . . . 8 . . . . . . . . 1 3 1 3 7 26 . 19 . Heat Flow Errors 28 | . . . . . . 5 . . . . . . . . . 2 . 1 2 16 . 2 . Energy Discharges 35 | . . . . . . 7 . . . . . . . . . 1 . . 3 19 . 5 . Parts Rejected 7 | . . . . . . . . . . . . . . . . . 1 . 2 2 . 1 1 Parts Fused 4 | . . . . . . 1 . . . . . . . . . . 1 . . . . 2 . Data Loss (minor) 24 | . . . . . . 2 . . . . . . . . . 1 . . 2 15 . 1 3 Data Loss (major) 10 | . . . . . . . . . . . . . . . . . . 1 1 7 . 1 . Misfires 10 | . . . . . . 1 . . . . . . . . . 1 . 1 2 1 . 3 1 Alerts 10 | . . . . . . 1 . . . . . . . . . . . . 1 6 . 2 . Weapon Failures 11 | . . . . . . . . . . . . . . . . . 1 . 1 3 . 5 1 Overload Shots 1 | . . . . . . . . . . . . . . . . 1 . . . . . . . Overflow Damage 546 | . . . . 3 60 25 9 . . . . . . 61 . . 30 . 214 82 . 7 55 Projectiles 447 | . . . . . 38 9 9 . . . . . . 61 . . . . 214 54 . 7 55 Explosions 99 | . . . . 3 22 16 . . . . . . . . . . 30 . . 28 . . . Melee . | . . . . . . . . . . . . . . . . . . . . . . . . Knockbacks 19 | . . . . . . . . . . . . . . 9 . . . . 1 6 . 2 1 Impact 1 | . . . . . . . . . . . . . . . . . . . . . . . 1 Kinetic 18 | . . . . . . . . . . . . . . 9 . . . . 1 6 . 2 . Secondary . | . . . . . . . . . . . . . . . . . . . . . . . . Self-Inflicted Damage 227 | . . . . . 118 93 . . . . . . . . . . . . . 16 . . . Shots 6 | . . . . . 3 2 . . . . . . . . . . . . . 1 . . . Rammed 10 | . . 2 . . 4 . . . . . . . . 1 . . . . 2 1 . . . Targets Rammed 15 | . . 2 . . 5 . 1 . . . . . . 2 . . . . 3 1 . . 1 Kicked 2 | . . . . . . . 1 . . . . . . . . . . . . . . . 1 Crushed 3 | . . . . . 1 . . . . . . . . 1 . . . . 1 . . . . Highest Temperature 604 | . 241 79 . 144 315 270 431 55 117 233 231 219 . 438 392 348 141 392 460 422 . 376 604 Average Temperature 118 | . 96 45 . 83 81 91 133 13 49 67 96 83 . 143 232 156 56 163 147 90 . 88 173 Received Heat Transfer 3385 | . 93 . . 63 171 378 336 . 45 87 69 102 . 390 . 291 157 174 155 455 . 290 129 Effects 42 | . . . . . 1 2 6 . . . . . . 5 1 . . 3 3 1 . 1 19 Shutdowns 17 | . . . . . . . 3 . . . . . . 1 1 . . 2 1 1 . 1 7 Energy Bleed 5 | . . . . . 1 2 1 . . . . . . . . . . . . . . . 1 Interference 14 | . . . . . . . 2 . . . . . . 4 . . . 1 1 . . . 6 Matter Decay 1 | . . . . . . . . . . . . . . . . . . . 1 . . . . Damage (minor) 1 | . . . . . . . . . . . . . . . . . . . . . . . 1 Damage (major) 4 | . . . . . . . . . . . . . . . . . . . . . . . 4 Siege Activations . | . . . . . . . . . . . . . . . . . . . . . . . . Martial Activations . | . . . . . . . . . . . . . . . . . . . . . . . . Shielding Activations . | . . . . . . . . . . . . . . . . . . . . . . . . Robots Disrupted 1 | . . . . . . . . . . . 1 . . . . . . . . . . . . Combat Hostiles 1 | . . . . . . . . . . . 1 . . . . . . . . . . . . Robots Corrupted 6 | . . . . . 3 2 . . . . . . . . . . . . . 1 . . . Combat Hostiles 5 | . . . . . 2 2 . . . . . . . . . . . . . 1 . . . Parts Fried 18 | . . . . . 8 4 2 . . . . . . . . . . . . 2 . 2 . Impact Corruptions . | . . . . . . . . . . . . . . . . . . . . . . . . Robots Melted 9 | . 1 . . . . . . . . . . . . 3 . 1 1 3 . . . . . Combat Hostiles 9 | . 1 . . . . . . . . . . . . 3 . 1 1 3 . . . . . Parts Melted 76 | . 8 . . . 3 1 . . . . . . . 10 6 6 3 9 21 4 . 1 4 Heat Transferred 26335 | . 1295 111 . 175 1113 531 1501 . 150 134 74 446 . 3999 518 2750 1693 2093 4096 3214 . 518 1924 Parts Sabotaged 29 | . . . . . . . . . . . . . . 17 . . . . . 8 . 4 . Parts Stolen . | . . . . . . . . . . . . . . . . . . . . . . . . Parts Stripped . | . . . . . . . . . . . . . . . . . . . . . . . . Power Chain Reactions 4 | . . . . . 2 1 . . 1 . . . . . . . . . . . . . . Alert | -11 -10 -10 -10 -9 -8 -8 -7 -7 -7 -7 -6 -6 -5 -5 -5 -5 -4 -4 -4 -4 -3 -3 -2 ------- Run | Yrd Mat Min Exi Min Mat Gar Fac Gar Fac Gar Fac Gar Fac Gar Fac Gar Fac Gar Fac Gar Res Gar Res Maximum Alert Level 5 | . . . . . 2 4 2 3 2 3 2 1 . 3 2 2 1 2 1 5 4 5 3 Low Security (%) 35 | 100 100 100 . 100 92 . . . . . 40 41 100 27 . 3 76 50 73 2 . . . Level 1 18 | . . . . . . 10 . . 34 19 45 58 . 29 95 23 23 35 26 12 . . 63 Level 2 21 | . . . . . 6 25 100 43 65 13 13 . . 37 4 73 . 13 . 22 . . . Level 3 10 | . . . . . . 55 . 56 . 66 . . . 5 . . . . . 13 . . 36 Level 4 8 | . . . . . . 7 . . . . . . . . . . . . . 14 100 90 . Level 5 5 | . . . . . . . . . . . . . . . . . . . . 34 . 9 . High Security . | . . . . . . . . . . . . . . . . . . . . . . . . Max Security . | . . . . . . . . . . . . . . . . . . . . . . . . Peak Influence 2694 | . 67 55 . 118 469 1173 681 826 483 772 408 232 116 764 401 696 359 558 292 2694 1518 1651 928 Initial 1515 | . . 9 . . . 317 615 497 433 298 405 66 116 13 401 171 359 . 292 179 1515 1123 928 Average 517 | . 18 5 . 53 94 747 577 698 414 642 270 188 59 382 308 521 112 259 141 1224 1510 1362 508 Influence Increases 11784 | . 187 108 . 172 1147 936 498 329 242 544 85 217 23 841 52 615 286 678 661 2715 23 788 637 Destroy 0b10 Robot/C 5655 | . 80 80 . 120 580 560 320 . 90 330 45 165 . 450 30 255 120 390 315 975 . 390 360 Destroy 0b10 Robot/NC 208 | . 20 . . . 45 5 50 . 8 . . . . 4 . 12 4 . 28 4 . . 28 Destroy Leader 736 | . 28 20 . 20 162 30 66 . 16 40 8 16 . 8 8 32 24 32 98 40 . 40 48 Allied During Kill 668 | . . 5 . 13 . 21 . . 44 134 . 12 . 2 . 39 19 19 11 216 . 74 59 Trap Triggered on 0b10 8 | . . . . . . . . . . . . . . . . 8 . . . . . . . Successful Hack 252 | . 29 . . . 34 21 30 14 38 . 9 . . 11 . 12 15 . 18 . . 11 10 Select Force Hacks 235 | . 30 . . . 60 . 30 . 23 . 23 . 23 . . . . . 23 . 23 . . Disable Machine 348 | . . . . . 45 15 . . 12 . . . . . 12 60 72 . 48 36 . 12 36 Anti-Garrison Action 2069 | . . . . . . 150 . 300 . . . . . 188 . 113 . 189 . 978 . 151 . Destroy Structure 1068 | . . 3 . 19 71 59 2 15 11 28 . . . 70 2 24 32 48 108 442 . 50 84 Lose Combat Pursuer 537 | . . . . . 150 75 . . . 12 . 24 . 108 . 60 . . 12 24 . 60 12 Influence Decreases 11483 | . 161 103 31 170 660 252 960 214 641 199 762 89 227 96 571 174 972 120 963 277 1219 635 1987 Entered New Map 5409 | . . 17 31 . 2 172 558 214 393 129 367 29 107 6 363 74 327 . 266 77 1179 375 723 Time Decay 3254 | . 161 66 . 150 638 . 342 . 198 . 100 . 120 . 198 . 292 . 575 . 40 . 374 Lost Part 780 | . . 20 . . 20 40 60 . 10 30 . 10 . 90 10 40 80 40 70 20 . 200 40 Lost Ally 1015 | . . . . 20 . 40 . . 40 40 20 50 . . . 60 123 80 52 180 . 60 250 Purge Threat 1025 | . . . . . . . . . . . 275 . . . . . 150 . . . . . 600 Squads Dispatched 45 | . 1 . . . 8 . 7 . 3 . 2 . 2 . 1 . 6 . 6 . 1 . 8 Investigation 13 | . 1 . . . 3 . 1 . 1 . 2 . 1 . . . 2 . 1 . 1 . . Extermination 10 | . . . . . . . 1 . . . . . 1 . 1 . 1 . 4 . . . 2 Reinforcement 15 | . . . . . 2 . 3 . 1 . . . . . . . 2 . 1 . . . 6 Assault . | . . . . . . . . . . . . . . . . . . . . . . . . Garrison 7 | . . . . . 3 . 2 . 1 . . . . . . . 1 . . . . . . Intercept . | . . . . . . . . . . . . . . . . . . . . . . . . Searches Triggered . | . . . . . . . . . . . . . . . . . . . . . . . . Construction Impeded 5 | . . . . . 1 . 1 . . . . . . . . . . . . . . . 3 Haulers Reinforced 1 | . . . . . . . 1 . . . . . . . . . . . . . . . . Active Scanning Responses . | . . . . . . . . . . . . . . . . . . . . . . . . Cargo Convoy Interrupts . | . . . . . . . . . . . . . . . . . . . . . . . . Stealth | -11 -10 -10 -10 -9 -8 -8 -7 -7 -7 -7 -6 -6 -5 -5 -5 -5 -4 -4 -4 -4 -3 -3 -2 --------- Run | Yrd Mat Min Exi Min Mat Gar Fac Gar Fac Gar Fac Gar Fac Gar Fac Gar Fac Gar Fac Gar Res Gar Res Distress Signals 11 | . 1 . . . 1 . . . . . . . . . . 1 1 . 3 . . . 4 Communications Jammed 14 | . . . . . . . . . . . . . . . . . . . 1 13 . . . Distress Signals 13 | . . . . . . . . . . . . . . . . . . . . 13 . . . Times Spotted 491 | . 12 4 . 5 51 34 22 . 8 25 6 22 1 42 2 32 16 27 38 70 . 38 36 Peak Tracking Total 13 | . 3 2 . 4 4 6 4 . 3 7 4 5 1 7 2 7 4 3 6 13 . 7 5 Tactical Retreats 22 | . . . . . 2 3 . . . 1 . 1 . 4 . 3 . . 1 2 . 4 1 Traps | -11 -10 -10 -10 -9 -8 -8 -7 -7 -7 -7 -6 -6 -5 -5 -5 -5 -4 -4 -4 -4 -3 -3 -2 ------- Run | Yrd Mat Min Exi Min Mat Gar Fac Gar Fac Gar Fac Gar Fac Gar Fac Gar Fac Gar Fac Gar Res Gar Res Traps Triggered 39 | . . . . . . 13 1 1 1 1 1 2 3 5 1 . . . 3 2 . 3 2 Indirectly 3 | . . . . . . 3 . . . . . . . . . . . . . . . . . Trap Hack Attempts 47 | . . . . . . . . . 45 . . . . . . 2 . . . . . . . Triggered . | . . . . . . . . . . . . . . . . . . . . . . . . Disarmed 4 | . . . . . . . . . 4 . . . . . . . . . . . . . . Reprogrammed 4 | . . . . . . . . . 2 . . . . . . 2 . . . . . . . Reused 1 | . . . . . . . . . . . . . . . . 1 . . . . . . . Traps Extracted . | . . . . . . . . . . . . . . . . . . . . . . . . Installed 1 | . . . . . . . . . . . . . . . . 1 . . . . . . . Triggered 1 | . . . . . . . . . . . . . . . . 1 . . . . . . . Most Traps Carried 1 | . . . . . . . . . . . . . . . . 1 . . . . . . . Machines | -11 -10 -10 -10 -9 -8 -8 -7 -7 -7 -7 -6 -6 -5 -5 -5 -5 -4 -4 -4 -4 -3 -3 -2 ---------- Run | Yrd Mat Min Exi Min Mat Gar Fac Gar Fac Gar Fac Gar Fac Gar Fac Gar Fac Gar Fac Gar Res Gar Res Machines Disabled 44 | . . . . . 3 2 . 1 1 . . . . 2 1 6 6 2 4 10 . 3 3 Max in Single Turn 6 | . . . . . 1 1 . 1 . . . . . 1 1 1 6 1 2 5 . 1 . Garrison Relay 15 | . . . . . . 1 . 1 . . . . . 1 . 2 . 2 . 6 . 2 . Machines Repaired . | . . . . . . . . . . . . . . . . . . . . . . . . Machines Dismantled . | . . . . . . . . . . . . . . . . . . . . . . . . Machines Sabotaged . | . . . . . . . . . . . . . . . . . . . . . . . . Overloaded Fab Kills . | . . . . . . . . . . . . . . . . . . . . . . . . Hacking | -11 -10 -10 -10 -9 -8 -8 -7 -7 -7 -7 -6 -6 -5 -5 -5 -5 -4 -4 -4 -4 -3 -3 -2 --------- Run | Yrd Mat Min Exi Min Mat Gar Fac Gar Fac Gar Fac Gar Fac Gar Fac Gar Fac Gar Fac Gar Res Gar Res Machines Accessed 66 | . 5 . 2 . 14 2 5 2 4 2 3 1 2 1 4 2 3 1 7 1 1 1 3 Terminals 37 | . 4 . . . 9 2 2 2 3 2 1 1 1 1 . 2 . 1 3 1 . 1 1 Fabricators 2 | . . . . . . . . . . . . . . . . . 1 . 1 . . . . Repair Stations 5 | . . . . . 1 . 1 . . . . . . . . . 1 . 1 . . . 1 Recycling Units 5 | . 1 . . . 1 . 1 . . . . . . . 2 . . . . . . . . Scanalyzers 6 | . . . . . 2 . . . . . 1 . . . 1 . . . 1 . . . 1 Garrison Access 9 | . . . . . 1 . 1 . 1 . 1 . 1 . 1 . 1 . 1 . 1 . . Total Hacks 174 | . 13 . 2 . 54 4 9 4 19 4 8 2 4 2 5 7 9 3 14 1 3 1 6 Successful 97 | . 6 . 2 . 37 2 4 1 11 1 5 1 2 1 3 1 7 . 6 . 3 1 3 Failed 76 | . 7 . . . 16 2 5 3 8 3 3 1 2 1 2 6 2 3 8 1 . . 3 Catastrophic 17 | . 1 . . . 2 . 1 . 4 2 . . 1 1 . 2 . 1 1 . . . 1 Database Lockouts 1 | . . . . . 1 . . . . . . . . . . . . . . . . . . Manual 72 | . 13 . 1 . 18 . 5 . 15 . 5 . 1 1 . 2 2 . 5 . 1 . 3 Terminals 105 | . 12 . . . 29 4 5 4 16 4 4 2 2 2 . 7 . 3 5 1 . 1 4 Fabricators 6 | . . . . . . . . . . . . . . . . . 4 . 2 . . . . Repair Stations 8 | . . . . . 2 . 1 . . . . . . . . . 2 . 2 . . . 1 Recycling Units 6 | . 1 . . . 2 . 1 . . . . . . . 2 . . . . . . . . Scanalyzers 24 | . . . . . 18 . . . . . 2 . . . 1 . . . 2 . . . 1 Garrison Access 23 | . . . . . 3 . 2 . 3 . 2 . 2 . 2 . 3 . 3 . 3 . . Terminal Hacks 29 | . 1 . 2 . 10 2 1 1 5 1 . 1 . 1 . 1 . . . . . 1 2 Record 1 | . . . 1 . . . . . . . . . . . . . . . . . . . . Robot Schematic 1 | . . . . . . . . . 1 . . . . . . . . . . . . . . Robot Analysis 6 | . 1 . . . 2 . . . 2 . . . . . . . . . . . . . 1 Prototype ID Bank 4 | . . . . . 3 . 1 . . . . . . . . . . . . . . . . Open Door 1 | . . . . . . 1 . . . . . . . . . . . . . . . . . Emergency Access Points 5 | . . . . . . 1 . 1 . 1 . . . 1 . . . . . . . 1 . Unreport Threat 1 | . . . . . . . . . . . . . . . . . . . . . . . 1 Locate Traps 3 | . . . . . 1 . . . 2 . . . . . . . . . . . . . . Hauler Manifests 1 | . . . . . 1 . . . . . . . . . . . . . . . . . . Zone Layout 3 | . . . . . 3 . . . . . . . . . . . . . . . . . . Patrol Navigation 1 | . . . . . . . . . . . . 1 . . . . . . . . . . . Security Stations 1 | . . . . . . . . . . . . . . . . 1 . . . . . . . Proto ID Catalog 1 | . . . 1 . . . . . . . . . . . . . . . . . . . . Fabricator Hacks 3 | . . . . . . . . . . . . . . . . . 3 . . . . . . Network Status 1 | . . . . . . . . . . . . . . . . . 1 . . . . . . Load Schematic 1 | . . . . . . . . . . . . . . . . . 1 . . . . . . Build 1 | . . . . . . . . . . . . . . . . . 1 . . . . . . Repair Station Hacks 4 | . . . . . 2 . . . . . . . . . . . 1 . 1 . . . . Scan Component 3 | . . . . . 1 . . . . . . . . . . . 1 . 1 . . . . Repair 1 | . . . . . 1 . . . . . . . . . . . . . . . . . . Recycling Unit Hacks 2 | . . . . . 1 . . . . . . . . . 1 . . . . . . . . Report Inventory 1 | . . . . . 1 . . . . . . . . . . . . . . . . . . Retrieve Components 1 | . . . . . . . . . . . . . . . 1 . . . . . . . . Scanalyzer 21 | . . . . . 17 . . . . . 2 . . . . . . . 2 . . . . Insert Component 11 | . . . . . 9 . . . . . 1 . . . . . . . 1 . . . . Analyze 10 | . . . . . 8 . . . . . 1 . . . . . . . 1 . . . . Garrison Access Hacks 14 | . . . . . 1 . 1 . 2 . 1 . 1 . 2 . 2 . 2 . 2 . . Unlock Access 9 | . . . . . 1 . 1 . 1 . 1 . 1 . 1 . 1 . 1 . 1 . . Coupler Status 5 | . . . . . . . . . 1 . . . . . 1 . 1 . 1 . 1 . . Unauthorized Hacks 24 | . 5 . . . 6 . 2 . 4 . 2 . 1 . . . 1 . 1 . 1 . 1 Terminals 14 | . 4 . . . 4 . 1 . 3 . 1 . . . . . . . . . . . 1 Assimilate 2 | . . . . . . . 1 . 1 . . . . . . . . . . . . . . Botnet 9 | . 3 . . . 3 . . . 1 . 1 . . . . . . . . . . . 1 Operators 3 | . 1 . . . 1 . . . 1 . . . . . . . . . . . . . . Fabricators 1 | . . . . . . . . . . . . . . . . . 1 . . . . . . Liberate 1 | . . . . . . . . . . . . . . . . . 1 . . . . . . Repair Stations . | . . . . . . . . . . . . . . . . . . . . . . . . Recycling Units 2 | . 1 . . . 1 . . . . . . . . . . . . . . . . . . Tunnel 2 | . 1 . . . 1 . . . . . . . . . . . . . . . . . . Scanalyzers . | . . . . . . . . . . . . . . . . . . . . . . . . Garrison Access 7 | . . . . . 1 . 1 . 1 . 1 . 1 . . . . . 1 . 1 . . Eject 7 | . . . . . 1 . 1 . 1 . 1 . 1 . . . . . 1 . 1 . . Data Cores Recovered 1 | . . . . . 1 . . . . . . . . . . . . . . . . . . Used . | . . . . . . . . . . . . . . . . . . . . . . . . Hacking Detections 52 | . 4 . . . 11 1 4 2 3 2 3 1 2 1 2 2 3 1 6 1 1 . 2 Full Trace Events 5 | . . . . . 1 . . 1 . . . . . . . . 2 1 . . . . . Feedback Events . | . . . . . . . . . . . . . . . . . . . . . . . . Feedback Blocked . | . . . . . . . . . . . . . . . . . . . . . . . . Robot Schematics Acquired 1 | . . . . . . . . . 1 . . . . . . . . . . . . . . Robots Built . | . . . . . . . . . . . . . . . . . . . . . . . . Authchips . | . . . . . . . . . . . . . . . . . . . . . . . . Time 134 | . . . . . . . . . . . . . . . . . 134 . . . . . . Total Robot Build Rating . | . . . . . . . . . . . . . . . . . . . . . . . . Part Schematics Acquired 9 | . . . . . 7 . . . . . 1 . . . . . . . 1 . . . . Parts Built . | . . . . . . . . . . . . . . . . . . . . . . . . Authchips . | . . . . . . . . . . . . . . . . . . . . . . . . Time . | . . . . . . . . . . . . . . . . . . . . . . . . Total Part Build Rating . | . . . . . . . . . . . . . . . . . . . . . . . . Part Studies Acquired . | . . . . . . . . . . . . . . . . . . . . . . . . Parts Repaired 1 | . . . . . 1 . . . . . . . . . . . . . . . . . . Time 38 | . . . . . 38 . . . . . . . . . . . . . . . . . . Parts Recycled . | . . . . . . . . . . . . . . . . . . . . . . . . Recycled Matter . | . . . . . . . . . . . . . . . . . . . . . . . . Retrieved Matter . | . . . . . . . . . . . . . . . . . . . . . . . . Retrieved Components 3 | . . . . . . . . . . . . . . . 3 . . . . . . . . Parts Scanalyzed 9 | . . . . . 7 . . . . . 1 . . . . . . . 1 . . . . Part Schematics Acquired 9 | . . . . . 7 . . . . . 1 . . . . . . . 1 . . . . Parts Damaged 1 | . . . . . 1 . . . . . . . . . . . . . . . . . . Bothacking | -11 -10 -10 -10 -9 -8 -8 -7 -7 -7 -7 -6 -6 -5 -5 -5 -5 -4 -4 -4 -4 -3 -3 -2 ------------ Run | Yrd Mat Min Exi Min Mat Gar Fac Gar Fac Gar Fac Gar Fac Gar Fac Gar Fac Gar Fac Gar Res Gar Res Used RIF Installer 9 | . . . . . . 2 . 1 . 1 . 1 . 1 . 1 . 1 . . . 1 . Hotswap 1 | . . . . . . . . . . . . 1 . . . . . . . . . . . Code Merge 1 | . . . . . . . . . . . . . . . . . . 1 . . . . . Threat Obfuscator 1 | . . . . . . . . 1 . . . . . . . . . . . . . . . Robot Detection 1 | . . . . . . . . . . 1 . . . . . . . . . . . . . Watcher Feeds 1 | . . . . . . . . . . . . . . . . 1 . . . . . . . Patrol Navigation 1 | . . . . . . 1 . . . . . . . . . . . . . . . . . Autooverride 1 | . . . . . . . . . . . . . . . . . . . . . . 1 . Autoassimilate 1 | . . . . . . . . . . . . . . 1 . . . . . . . . . Robots Hacked 72 | . . . . . . . . . 3 3 2 5 . 4 . 6 7 3 9 4 . 9 17 Non-combat 10 | . . . . . . . . . 1 . 1 . . . . . 4 . 2 . . . 2 Combat 62 | . . . . . . . . . 2 3 1 5 . 4 . 6 3 3 7 4 . 9 15 Autooverrided 4 | . . . . . . . . . . . . . . . . . . . . . . . 4 Autoassimilated 12 | . . . . . . . . . . . . . . . . 2 . 3 1 . . 2 4 Robot Hacks Applied 70 | . . . . . . . . . 4 3 7 6 . 4 . 4 9 . 9 4 . 7 13 ignore_repairs 1 | . . . . . . . . . 1 . . . . . . . . . . . . . . drop_inventory 2 | . . . . . . . . . . . . . . . . . 1 . 1 . . . . find_station 1 | . . . . . . . . . . . . . . . . . . . . . . . 1 purge_threat 7 | . . . . . . . . . . . 2 . . . . . 1 . . . . . 4 find_terminals 1 | . . . . . . . . . . . . . . . . . 1 . . . . . . block_reporting 1 | . . . . . . . . . . . 1 . . . . . . . . . . . . recall_investigation 1 | . . . . . . . . . . . 1 . . . . . . . . . . . . find_garrison 3 | . . . . . . . . . 1 . 1 . . . . . . . 1 . . . . scatter_targeting 1 | . . . . . . . . . . . . . . . . . . . . . . . 1 disrupt_area 4 | . . . . . . . . . . . . . . . . . . . 1 2 . . 1 amplify_resonance 16 | . . . . . . . . . . 2 . 4 . 3 . 1 1 . 2 . . 3 . reboot_system 4 | . . . . . . . . . . 1 . 1 . . . . . . 1 . . . 1 overwrite_iff 6 | . . . . . . . . . 2 . . . . 1 . . 1 . . . . 1 1 formatsys_low 6 | . . . . . . . . . . . 1 . . . . . 3 . 1 . . . 1 formatsys_high 16 | . . . . . . . . . . . 1 1 . . . 3 1 . 2 2 . 3 3 Relay Couplers Released 88 | . . . . . 3 5 3 4 3 . 4 . 4 3 . 9 . 9 4 26 3 8 . Ejected 24 | . . . . . 3 . 3 . 3 . 4 . 4 . . . . . 4 . 3 . . Machine Destruction 64 | . . . . . . 5 . 4 . . . . . 3 . 9 . 9 . 26 . 8 . Attached 21 | . . . . . . . . . 1 . 2 2 . 2 . 3 . 2 2 1 1 2 3 Merged Code Value 79 | . . . . . . . . . . . . . . . . . . 27 7 30 6 9 . Fabnet Peak Effective % . | . . . . . . . . . . . . . . . . . . . . . . . . Robots Rewired 18 | . . . . . . 2 . 3 . . 1 . . . . . . . . 12 . . . Allies Hacked 4 | . . . . . . . . . . . . . . . . 2 1 . . . . . 1 Hacks Repelled . | . . . . . . . . . . . . . . . . . . . . . . . . Allies | -11 -10 -10 -10 -9 -8 -8 -7 -7 -7 -7 -6 -6 -5 -5 -5 -5 -4 -4 -4 -4 -3 -3 -2 -------- Run | Yrd Mat Min Exi Min Mat Gar Fac Gar Fac Gar Fac Gar Fac Gar Fac Gar Fac Gar Fac Gar Res Gar Res Total Allies 73 | . . 3 . . . 2 . 5 2 3 3 1 . 1 . 5 8 3 4 14 . 6 13 Largest Group 7 | . . 3 2 2 1 2 . 5 6 6 2 2 . 1 . 3 5 3 2 7 3 5 4 Highest-Rated Group 353 | . . 40 24 24 16 56 . 158 174 291 58 58 . 29 . 111 219 82 96 353 143 308 316 Highest-Rated Ally 183 | . . 16 16 16 16 31 . 39 39 95 32 32 . 29 . 49 49 47 49 116 51 64 183 Total Orders 26 | . . . . . . 5 . . . . . . . . . 5 2 6 2 6 . . . STAY 10 | . . . . . . 2 . . . . . . . . . 3 . 2 . 3 . . . FOLLOW 10 | . . . . . . 3 . . . . . . . . . 2 1 2 1 1 . . . AID 6 | . . . . . . . . . . . . . . . . . 1 2 1 2 . . . Ally Attacks 443 | . . 14 . 3 . 24 . . 22 59 1 9 . 3 . 38 21 9 17 113 . 36 74 Total Damage 13202 | . . 83 . 43 . 374 . . 266 1843 18 328 . 58 . 914 454 163 499 3754 . 1064 3341 Kills 78 | . . 2 . 1 . 2 . . 5 14 . 4 . 1 . 6 2 1 2 19 . 4 15 Allies Corrupted 6 | . . . . . . . . . . . . 1 . . . 1 . . . 2 . . 2 Allies Melted 2 | . . . . . . . . . 1 . . . . . . . 1 . . . . . . Intel | -11 -10 -10 -10 -9 -8 -8 -7 -7 -7 -7 -6 -6 -5 -5 -5 -5 -4 -4 -4 -4 -3 -3 -2 ------- Run | Yrd Mat Min Exi Min Mat Gar Fac Gar Fac Gar Fac Gar Fac Gar Fac Gar Fac Gar Fac Gar Res Gar Res Active Infowar (turns) 7212 | . . . . . . . 406 23 . . . . 17 194 . . 434 1394 1264 3116 80 284 . Sensors 260 | . . . . . . . . . . . . . . . . . 260 . . . . . . Terrain 428 | . . . . . . . 406 22 . . . . . . . . . . . . . . . Jamming 6784 | . . . . . . . . 1 . . . . 17 194 . . 434 1394 1264 3116 80 284 . Robot Analysis Total 6 | . 1 . . . 2 . . . 2 . . . . . . . . . . . . . 1 Derelict Logs Recovered 3 | . . 1 . 2 . . . . . . . . . . . . . . . . . . . Drone Launches . | . . . . . . . . . . . . . . . . . . . . . . . . Drone Recoveries . | . . . . . . . . . . . . . . . . . . . . . . . . Exploration | -11 -10 -10 -10 -9 -8 -8 -7 -7 -7 -7 -6 -6 -5 -5 -5 -5 -4 -4 -4 -4 -3 -3 -2 ------------- Run | Yrd Mat Min Exi Min Mat Gar Fac Gar Fac Gar Fac Gar Fac Gar Fac Gar Fac Gar Fac Gar Res Gar Res Turns Passed 23221 | 131 529 917 740 310 2502 1362 778 697 402 592 218 432 251 1904 417 1636 722 1394 1806 3208 80 1324 869 Spaces Moved 11791 | 78 273 540 457 175 1194 500 408 644 288 546 153 348 239 839 212 790 320 677 822 1344 34 532 378 Core 4 | 3 . . . . . . . . . . . . . . . . . . . . . 1 . Treads 7813 | 75 273 540 457 175 1194 459 . . . . . . . 361 212 790 320 677 822 1344 34 80 . Legs 3974 | . . . . . . 41 408 644 288 546 153 348 239 478 . . . . . . . 451 378 Wheels . | . . . . . . . . . . . . . . . . . . . . . . . . Hover . | . . . . . . . . . . . . . . . . . . . . . . . . Flight . | . . . . . . . . . . . . . . . . . . . . . . . . Fastest Speed 50 | 50 160 160 160 160 153 153 100 100 100 90 90 97 65 105 160 170 162 163 158 160 163 120 114 Average Speed 161 | 155 160 160 160 160 177 223 139 100 100 91 96 97 96 173 169 170 171 165 165 196 233 202 170 Slowest Speed 1900 | 160 160 160 240 160 240 233 176 100 100 100 97 97 105 320 170 170 250 245 246 245 243 1900 190 Overloaded Moves 5 | . . . . . . . . . . . . . 5 . . . . . . . . . . Propulsion Burnouts . | . . . . . . . . . . . . . . . . . . . . . . . . Robots Hopped . | . . . . . . . . . . . . . . . . . . . . . . . . Potential Cave-ins 6 | . . . . . . . . . . . . . . . . . . . . 6 . . . Cave-ins Triggered 1 | . . . . . . . . . . . . . . . . . . . . 1 . . . Exploration Rate (%) 44 | 5 47 96 69 43 86 69 14 93 10 71 5 40 5 81 5 72 11 67 22 82 3 53 14 Regions Visited 23 Branch Regions 3 Pre-discovered Areas 5 | . 1 . 1 2 1 . . . . . . . . . . . . . . . . . . Known Exits Taken 13 | . 1 1 1 1 1 . 1 . 1 . 1 . 1 . 1 . 1 . 1 . 1 . . Unknown Exits Taken 1 | 1 . . . . . . . . . . . . . . . . . . . . . . . Scrap Searched 3 | . . 1 . 2 . . . . . . . . . . . . . . . . . . . Spaces Dug 73 | . . . . . . . . . . . . . . . . . . . . 73 . . . Terrain Destroyed 458 | . . 3 . 19 68 19 . . 6 . . 1 . 7 1 . 25 1 59 219 . 13 17 Melee . | . . . . . . . . . . . . . . . . . . . . . . . . Projectile 108 | . . . . . . . . . . . . 1 . 7 1 . . 1 38 30 . 13 17 AOE 350 | . . 3 . 19 68 19 . . 6 . . . . . . . 25 . 21 189 . . . Terrain Rammed . | . . . . . . . . . . . . . . . . . . . . . . . . Walls Destroyed . | . . . . . . . . . . . . . . . . . . . . . . . . Machines Disabled . | . . . . . . . . . . . . . . . . . . . . . . . . Actions | -11 -10 -10 -10 -9 -8 -8 -7 -7 -7 -7 -6 -6 -5 -5 -5 -5 -4 -4 -4 -4 -3 -3 -2 --------- Run | Yrd Mat Min Exi Min Mat Gar Fac Gar Fac Gar Fac Gar Fac Gar Fac Gar Fac Gar Fac Gar Res Gar Res Total 14581 | 85 316 572 464 194 1470 671 517 699 387 610 199 401 258 1092 256 962 447 872 1132 1724 35 697 521 Wait 808 | . 10 . . . 149 56 31 10 33 4 18 6 . 28 13 59 63 72 134 83 . 24 15 Move 11770 | 77 272 539 456 174 1194 499 408 643 287 545 152 347 238 838 212 789 320 676 821 1342 33 530 378 Hop . | . . . . . . . . . . . . . . . . . . . . . . . . Pick Up 188 | 2 7 5 4 3 15 13 5 13 1 4 3 3 5 17 2 4 7 14 13 28 . 15 5 Fast Attach 178 | 6 1 1 . 2 8 10 3 . . 8 . 1 6 25 5 4 7 6 25 22 2 23 13 Attach 103 | . . 6 1 . 4 8 5 1 1 2 4 2 2 12 2 4 3 4 7 16 . 14 5 Detach 12 | . . . . . . . 1 . . 1 . . . 2 1 . . . 3 2 . 2 . Swap 143 | . . . 2 1 14 1 10 7 2 4 2 4 2 10 5 12 9 7 12 24 . 2 13 Drop 247 | . 1 . 1 6 22 19 1 13 1 12 1 3 5 19 10 8 4 19 34 45 . 8 15 Fire 992 | . 25 19 . 8 60 53 48 7 11 25 19 28 . 114 6 75 29 74 79 160 . 77 75 Melee 21 | . . . . . . 2 . 5 6 . . . . . . 4 4 . . . . . . Ram . | . . . . . . . . . . . . . . . . . . . . . . . . Kick 2 | . . . . . . . 1 . . . . . . . . . . . . . . . 1 Crush 12 | . . 2 . . 4 . . . . . . . . 2 . . . . 3 1 . . . Escape Stasis 54 | . . . . . . 10 4 . . 5 . 7 . 25 . . . . . 1 . 2 . Rewire 3 | . . . . . . . . . . . . . . . . . 1 . 1 . . . 1 Trap 48 | . . . . . . . . . 45 . . . . . . 3 . . . . . . . Miscellaneous . | . . . . . . . . . . . . . . . . . . . . . . . . Route ------- -11/Scrapyard -10/Materials (discovered 3 exits: *Mat / *Min / *Sub) -10/Mines (discovered 4 exits: *Mat x2 / *Exi / *Sub) -10/Exiles -9/Mines -8/Materials (discovered 4 exits: *Fac x3 / Gar) -8/Garrison (discovered 2 exits: *Fac x2) -7/Factory -7/Garrison (discovered 3 exits: *Fac x3) -7/Factory (discovered 2 exits: [*Low] / Gar) -7/Garrison (discovered 3 exits: *Fac x3) -6/Factory -6/Garrison (discovered 2 exits: *Fac x2) -5/Factory -5/Garrison (discovered 3 exits: *Fac x3) -5/Factory -5/Garrison (discovered 3 exits: *Fac x3) -4/Factory -4/Garrison (discovered 2 exits: *Fac x2) -4/Factory -4/Garrison (discovered 3 exits: *Res x3) -3/Research -3/Garrison -2/Research History --------- Turn | Location | Event 34 | -11/Scrapyard | Discovered new exit (range 14) 132 | -11/Scrapyard | Entered Materials 304 | -10/Materials | Build established: Mutant 395 | -10/Materials | Discovered new exit (range 11) 456 | -10/Materials | Discovered new exit (range 13) 643 | -10/Materials | Discovered new exit (range 10) 655 | -10/Materials | Identified exit to Mines 661 | -10/Materials | Entered Mines 741 | -10/Mines | Assembled infested the area 746 | -10/Mines | Assisted by a Guerilla fighting off Assembled 809 | -10/Mines | Lost 3 parts (1n2w) 822 | -10/Mines | Discovered new exit (range 15) 882 | -10/Mines | Identified exit to Materials 939 | -10/Mines | Core integrity fell below 50% 971 | -10/Mines | Lost 4 parts (1p1n2w) 1115 | -10/Mines | Learned Materials security intel 1203 | -10/Mines | Discovered exit to Materials (range 4) 1226 | -10/Mines | Discovered new exit (range 5) 1230 | -10/Mines | Identified exit to Subcaves 1240 | -10/Mines | Assisted by bots powering up and referring to "LRC-V3" 1570 | -10/Mines | Deemed a non-threat by the Exiles lab entrance 1570 | -10/Mines | Discovered new exit (range 5) 1575 | -10/Mines | Identified exit to Exiles 1578 | -10/Mines | Entered Exiles 1578 | -10/Exiles | Accompanied by 2 allies 1617 | -10/Exiles | Met 8R-AWN 1646 | -10/Exiles | Met EX-HEX 1697 | -10/Exiles | Met EX-BIN 1761 | -10/Exiles | Aligned with FarCom system 1762 | -10/Exiles | Given EX-Vault access code 1799 | -10/Exiles | Opened EX-Vault 1841 | -10/Exiles | Warned to stay clear of 0b10 Research branches 1886 | -10/Exiles | Met EX-DEC 1892 | -10/Exiles | Learned location of Zion (-6) 2151 | -10/Exiles | Found XL Autogun Array 2155 | -10/Exiles | Found Skeleton Box 2167 | -10/Exiles | Found Potential Leg 2170 | -10/Exiles | Found Potential Leg 2302 | -10/Exiles | Discovered new exit (range 10) 2317 | -10/Exiles | Identified exit to Mines 2318 | -10/Exiles | Stole three prototypes: Potential Leg, Skeleton Box, XL Autogun Array 2318 | -10/Exiles | Entered Mines 2318 | -9/Mines | Accompanied by 2 allies 2488 | -9/Mines | Found a damaged Exp. Sensor Array with a note attached 2491 | -9/Mines | Found Prototype Device 2610 | -9/Mines | Discovered new exit (range 8) 2623 | -9/Mines | Identified exit to Materials 2628 | -9/Mines | Entered Materials 2628 | -8/Materials | Accompanied by 1 ally 2628 | -8/Materials | Evolved 4 slots: Propulsion x1, Utility x1, Weapon x2 3379 | -8/Materials | Build established: Skirmisher 3485 | -8/Materials | Discovered new exit (range 16) 3541 | -8/Materials | Central database locked down 4349 | -8/Materials | Identified Exp. Sensor Array 4692 | -8/Materials | Discovered new exit (range 7) 4718 | -8/Materials | Repaired EM Pulse Cannon? 4929 | -8/Materials | Garrison activated, responded to threat 4991 | -8/Materials | Discovered new exit (range 7) 5128 | -8/Materials | Identified exit to Garrison 5130 | -8/Materials | Entered Garrison 5274 | -8/Garrison | Triggered checkpoint 5277 | -8/Garrison | Triggered checkpoint 5342 | -8/Garrison | Lost 3 parts (1u2w) 5602 | -8/Garrison | Triggered checkpoint 5896 | -8/Garrison | Triggered checkpoint 6085 | -8/Garrison | Discovered new exit (range 10) 6324 | -8/Garrison | Installed Relay Interface Framework 6377 | -8/Garrison | Expanded RIF knowledge: Patrol Navigation 6425 | -8/Garrison | Discovered new exit (range 11) 6445 | -8/Garrison | Garrison Relay disabled 6492 | -8/Garrison | Entered Factory 6492 | -7/Factory | Evolved 2 slots: Utility x2 6494 | -7/Factory | FarCom data flow suspended 7147 | -7/Factory | Garrison activated, responded to threat 7219 | -7/Factory | Lost 3 parts (2u1w) 7270 | -7/Factory | Identified exit to Garrison 7270 | -7/Factory | Entered Garrison 7270 | -7/Garrison | Discovered recently destroyed garrison 7292 | -7/Garrison | Rescued a captive Derelict 7294 | -7/Garrison | Rescued a captive Derelict 7512 | -7/Garrison | Discovered new exit (range 8) 7576 | -7/Garrison | Garrison Relay disabled 7760 | -7/Garrison | Discovered new exit (range 12) 7915 | -7/Garrison | Build established: Bothacker-Tank 7915 | -7/Garrison | Discovered new exit (range 12) 7941 | -7/Garrison | Expanded RIF knowledge: Threat Obfuscation 7967 | -7/Garrison | Entered Factory 7967 | -7/Factory | Accompanied by 5 allies 8003 | -7/Factory | Discovered new exit (range 15) 8298 | -7/Factory | Garrison activated, responded to threat 8348 | -7/Factory | Identified exit to Garrison 8369 | -7/Factory | Entered Garrison 8369 | -7/Garrison | Accompanied by 3 allies 8381 | -7/Garrison | Found embedded Infiltrators 8399 | -7/Garrison | Rescued a captive Derelict 8417 | -7/Garrison | Triggered checkpoint 8522 | -7/Garrison | Lost 3 parts (1u2w) 8543 | -7/Garrison | Triggered checkpoint 8555 | -7/Garrison | P-60 Hacker assimilated allied Guardian 4a 8565 | -7/Garrison | Triggered checkpoint 8619 | -7/Garrison | Triggered checkpoint 8673 | -7/Garrison | Discovered new exit (range 9) 8817 | -7/Garrison | Expanded RIF knowledge: Robot Detection 8860 | -7/Garrison | Discovered new exit (range 14) 8952 | -7/Garrison | Discovered new exit (range 8) 8961 | -7/Garrison | Entered Factory 8961 | -6/Factory | Evolved 2 slots: Propulsion x1, Utility x1 9165 | -6/Factory | Identified exit to Garrison 9179 | -6/Factory | Entered Garrison 9179 | -6/Garrison | Accompanied by 2 allies 9204 | -6/Garrison | Expanded RIF knowledge: Hotswap 9345 | -6/Garrison | Triggered checkpoint 9379 | -6/Garrison | Triggered checkpoint 9422 | -6/Garrison | Discovered new exit (range 10) 9538 | -6/Garrison | Heavy support dispatched to Factory 9541 | -6/Garrison | Triggered checkpoint 9585 | -6/Garrison | Discovered new exit (range 14) 9611 | -6/Garrison | Entered Factory 9611 | -5/Factory | Evolved 2 slots: Power x1, Utility x1 9822 | -5/Factory | Build established: Scavenger-Tank 9839 | -5/Factory | Identified exit to Garrison 9862 | -5/Factory | Entered Garrison 9971 | -5/Garrison | Spotted B-75 Beast 9977 | -5/Garrison | Destroyed B-75 Beast 9982 | -5/Garrison | Triggered checkpoint 10056 | -5/Garrison | Triggered checkpoint 10150 | -5/Garrison | Build established: Bothacker-Tank 10284 | -5/Garrison | Discovered new exit (range 13) 10302 | -5/Garrison | Expanded RIF knowledge: Autoassimilate 10384 | -5/Garrison | Garrison Relay disabled 10460 | -5/Garrison | Triggered checkpoint 10627 | -5/Garrison | Discovered new exit (range 10) 10755 | -5/Garrison | Lost 3 parts (1n2w) 10980 | -5/Garrison | Build established: Scavenger-Tank 11372 | -5/Garrison | Triggered checkpoint 11522 | -5/Garrison | Found Relay Coupler [Proto] 11525 | -5/Garrison | Found Relay Coupler [Proto] 11644 | -5/Garrison | Discovered new exit (range 11) 11664 | -5/Garrison | Build established: Scavenger-Gunner 11706 | -5/Garrison | Triggered checkpoint 11766 | -5/Garrison | Entered Factory 12183 | -5/Factory | Identified exit to Garrison 12183 | -5/Factory | Entered Garrison 12425 | -5/Garrison | Triggered checkpoint 12443 | -5/Garrison | Triggered checkpoint 12480 | -5/Garrison | Garrison Relay disabled 12504 | -5/Garrison | Expanded RIF knowledge: Watcher Feeds 12648 | -5/Garrison | Build established: Botlord-Gunner 12653 | -5/Garrison | Learned Factory security intel 12737 | -5/Garrison | Triggered checkpoint 12747 | -5/Garrison | Triggered checkpoint 12783 | -5/Garrison | Lost 3 parts (1p2w) 12790 | -5/Garrison | Lost 3 allies 12901 | -5/Garrison | Triggered checkpoint 12977 | -5/Garrison | Discovered new exit (range 10) 13196 | -5/Garrison | Discovered new exit (range 12) 13237 | -5/Garrison | Triggered checkpoint 13548 | -5/Garrison | Triggered checkpoint 13582 | -5/Garrison | Discovered new exit (range 10) 13663 | -5/Garrison | Spotted B-90 Cyclops 13663 | -5/Garrison | Spotted B-86 Titan 13819 | -5/Garrison | Entered Factory 13819 | -4/Factory | Accompanied by 2 allies 13819 | -4/Factory | Evolved 2 slots: Utility x1, Weapon x1 14105 | -4/Factory | Build established: Botlord-Tank 14232 | -4/Factory | Spotted B-86 Titan 14255 | -4/Factory | Lost 5 allies 14271 | -4/Factory | Destroyed B-86 Titan 14295 | -4/Factory | Lost 8 parts (2p2n4w) 14352 | -4/Factory | Garrison activated, responded to threat 14540 | -4/Factory | Identified exit to Garrison 14541 | -4/Factory | Entered Garrison 14541 | -4/Garrison | Accompanied by 2 allies 14553 | -4/Garrison | Triggered checkpoint 14648 | -4/Garrison | Lost 3 allies 14649 | -4/Garrison | Destroyed 8 combat bots 14851 | -4/Garrison | Spotted B-86 Titan 14857 | -4/Garrison | Destroyed B-86 Titan 14867 | -4/Garrison | Triggered checkpoint 14876 | -4/Garrison | Build established: Bothacker-Gunner 14935 | -4/Garrison | Triggered checkpoint 15003 | -4/Garrison | Discovered new exit (range 10) 15112 | -4/Garrison | Expanded RIF knowledge: Code Merge 15285 | -4/Garrison | Triggered checkpoint 15319 | -4/Garrison | Triggered checkpoint 15351 | -4/Garrison | Destroyed 7 combat bots 15389 | -4/Garrison | Triggered checkpoint 15405 | -4/Garrison | Garrison Relay disabled 15705 | -4/Garrison | Build established: Botlord-Tank 15749 | -4/Garrison | Discovered new exit (range 9) 15865 | -4/Garrison | Garrison Relay disabled 15935 | -4/Garrison | Entered Factory 15935 | -4/Factory | Accompanied by 1 ally 17032 | -4/Factory | Lost 4 parts (1p2u1w) 17730 | -4/Factory | Identified exit to Garrison 17741 | -4/Factory | Entered Garrison 17741 | -4/Garrison | Accompanied by 1 ally 17813 | -4/Garrison | System corruption reached 10% 18063 | -4/Garrison | Triggered checkpoint 18110 | -4/Garrison | Found Adv. Powered Armor 18114 | -4/Garrison | Found Adv. Powered Armor 18121 | -4/Garrison | Found Adv. Powered Armor 18123 | -4/Garrison | Found Adv. Powered Armor 18136 | -4/Garrison | Found Adv. Powered Armor 18206 | -4/Garrison | Spotted B-86 Titan 18206 | -4/Garrison | Spotted B-86 Titan 18211 | -4/Garrison | Assimilated Titan 7a with formatsys_high 18223 | -4/Garrison | Destroyed B-86 Titan 18276 | -4/Garrison | Found Fusion Bomb Launcher 18498 | -4/Garrison | Spotted B-86 Titan 18522 | -4/Garrison | Destroyed B-86 Titan 18679 | -4/Garrison | Triggered checkpoint 18683 | -4/Garrison | Triggered checkpoint 18685 | -4/Garrison | Triggered checkpoint 18823 | -4/Garrison | Triggered checkpoint 18823 | -4/Garrison | Triggered checkpoint 18915 | -4/Garrison | Triggered checkpoint 18920 | -4/Garrison | Discovered new exit (range 12) 19036 | -4/Garrison | Garrison Relay disabled 19126 | -4/Garrison | Build established: Bothacker-Tank 19307 | -4/Garrison | Lost 4 allies 19414 | -4/Garrison | Lost 3 allies 19414 | -4/Garrison | Crushed by falling debris 19743 | -4/Garrison | Triggered checkpoint 19857 | -4/Garrison | Discovered new exit (range 15) 19945 | -4/Garrison | Triggered checkpoint 19997 | -4/Garrison | P-70 Sage assimilated allied Veteran 7d 20155 | -4/Garrison | Garrison Relay disabled 20343 | -4/Garrison | Build established: Botlord-Tank 20401 | -4/Garrison | Found Fusion Bomb Launcher 20618 | -4/Garrison | Discovered new exit (range 12) 20767 | -4/Garrison | Remotely autohacked Sealed Heavy Doors 20949 | -4/Garrison | Entered Research 20949 | -3/Research | Accompanied by 3 allies 20949 | -3/Research | Evolved 2 slots: Power x1, Utility x1 20992 | -3/Research | Identified exit to Garrison 21029 | -3/Research | Entered Garrison 21029 | -3/Garrison | Accompanied by 3 allies 21198 | -3/Garrison | Triggered checkpoint 21236 | -3/Garrison | Lost 3 allies 21305 | -3/Garrison | Lost 9 parts (1p3n4u1w) 21307 | -3/Garrison | Triggered checkpoint 21356 | -3/Garrison | System corruption reached 10% 21359 | -3/Garrison | Lost 5 parts (1p1n2u1w) 21449 | -3/Garrison | Triggered checkpoint 21601 | -3/Garrison | Expanded RIF knowledge: Autooverride 21702 | -3/Garrison | Discovered new exit (range 12) 21795 | -3/Garrison | Triggered checkpoint 22134 | -3/Garrison | Garrison Relay disabled 22353 | -3/Garrison | Entered Research 22353 | -2/Research | Accompanied by 4 allies 22353 | -2/Research | Evolved 2 slots: Propulsion x1, Utility x1 22467 | -2/Research | Lost 5 allies 22774 | -2/Research | Lost 3 allies 23222 | -2/Research | Self-destructed Last Messages --------------- 23211_ Penetrated by Slug. 23214_ Myomer Leg destroyed. 23214_ R-10 Processor collects Corrupted Wheel. 23214_ Penetrated by Slug. 23216_ K-01 Serf collects debris. 23216_ U-05 Engineer builds a Wall. 23216_ R-10 Processor collects Unknown Storage. 23218_ Power failure, Lgt. Quantum Reactor shutdown. 23218_ Adv. Remote Datajack destroyed. 23218_ Slug penetrates Wall. 23218_ R-10 Processor collects Lgt. Ion Engine. 23219_ Power failure, Particle Reactor shutdown. 23219_ H-88 Terminator destroyed. 23219_ K-01 Serf collects debris. 23221_ Overheating: System interference. 23221_ Quantum Rifle temporarily disabled. 23221_ R-10 Processor collects Wheel. 23222_ Overheating: System interference. 23222_ Adv. Phase Shifter temporarily disabled. 23222_ Enh. Nova Cannon temporarily disabled. Map ----- +----------------------------------------------------+ | ?????????????????????????????????????????????????? | | ?????????????????????????????????????????????????? | | ?????????????????????????????????????????????????? | | ?????????????????????????????????????????????????? | | ?????????????????????????????????????????????????? | | ?????????????????????????????????????????????????? | | ?????????????????????????????????????????????????? | | ?????????????????????????????????????????????????? | | ?????????????????????????????????????????????????? | | ?????????????????????? ??????????????????????????? | | ??????????????????????/??????????????????????????? | | ?????????????????????# ??????????????????????????? | | ?????????????????????#p#?????????????????????????? | | ?????????????????????# ;###??????????????????????? | | ?????????????????????# p #??????????????????????? | | ???????????????? "???# #??????????????????????? | | ?????????????????""??# #??????????????????????? | | ?????????????????? ?+ #???????????????????H??? | | ??????????????????? # #???###??#?????????????? | | ???????????????????? # [ #???""" #?????????????? | | ????????????+######### %* #?? "Y" #?????????????? | | ???????????? k! #? " " ???????????????? | | ??????????????# # ?????????????????? | | ??????????????# u# ???????????????????? | | ??????????????# =%! ; ?????????????????????? | | ?????????????????????# [ @#??????????????????????? | | ?????????????????????# =%#??????????????????????? | | ?????????????????????# #??????????????????????? | | ?????????????????????# #??????????????????????? | | ?????????????????????# #??????????????????????? | | ?????????????# ??????# #??????????????????????? | | ?????????????# ?????#=* #??????????????????????? | | ?????????????#! ????#% #??????????????????????? | | ?????????????#% ???#!%R #??????????????????????? | | ?????????????# = ??# #? "?" ???????????????? | | ?????????????# ?# R # """ ???????????????? | | ?????????????# # p # """ "??????????????? | | ?????????????# # + """ "??????????????? | | ????########## + # """ "??????????????? | | ????# # # #??""" ???????????????? | | ????# # ??# #???? ???????????????? | | ????# """ ######### #?????? ??????????????? | | ????# """ ## #??????????????????????? | | ????# R" + #??????????????????????? | | ???## """ ## ! #??????????????????????? | | ???# "" ## #??????????????????????? | | ????# ## ###+####??????????????????????? | | ????# [[ ## # ????????????????????????? | | ########+###### # ??????????????????????? | | # %=! # """ #????????????????????? | +----------------------------------------------------+ Best States ------------- Heat Dissipation 139 Coolant Potential 100 Energy Generation 67 Energy Capacity 870 Matter Stores 300 Matter Capacity 600 Sight Range 16 Robot Scan Range 20 Terrain Scan Range 20 Terrain Scan Density 210 Jamming Range 14 Corruption Block 8 Armor Coverage 800 Resistance: KI 25 Propulsion Shielding 33 Point Defense Rating 240 Phase Shifting 15 Evasion (%) 70 Recoil Reduction 4 Offensive Hacking 10 Defensive Hacking 22 Relay Coupler Types 5 Relay Coupler Value 129 Authchip Count 2 Item Schematics ----------------- Propulsion Shielding | -8/Materials | Scanalyzed Lgt. Treads | -8/Materials | Scanalyzed EM Pulse Cannon | -8/Materials | Scanalyzed Nuclear Core | -8/Materials | Scanalyzed Imp. Datajack | -8/Materials | Scanalyzed Corruption Screen | -8/Materials | Scanalyzed Hrd. Medium Armor Plating | -8/Materials | Scanalyzed Adv. Cooling System | -6/Factory | Scanalyzed Hvy. Treads | -4/Factory | Scanalyzed Robot Schematics ------------------ P-60 Hacker | -7/Factory | Hacked Fabricated ------------ Nothing Repaired ---------- EM Pulse Cannon | 52% | -8/Materials Studied --------- None Alien Tech Used ----------------- None Achievements -------------- Giant Slayer Hack Snack No Explosion For You No Room For Error Pwned Zeroed Repercussions Challenges ------------ None Game ------ Seed XenonGrapheneCanceller Manual? 0 Play Time 04:17:48 Cumulative 223.9 hours Start 2025.11.06 @ 08:35:39 End 2025.11.06 @ 15:50:50 Sessions 1 Manual Loads 0 Difficulty Rogue Special Mode None Game No. 227 Rogue 223 Adventurer 3 Explorer 1 Win Type - Total 1 Types 1/0/0/0/0/0/0/0/0/0 Lore% 72 Gallery% 73 Achievement% 56 Wizard Run 0 Options --------- Layout 0 ASCII 0 Keyboard 0 Movement Mouse Keybinds 0 Fullscreen 2 Font 18/SmallcapsGlow Map View 76x50 Zoom Use 0% Tactical HUD 1 Map Filters NONE Filters NONE Steam 1 RUN: 9175c5dd-5ad1-4a7b-b8f2-31937c5a8739